[Event "Titled Tuesday Blitz August 08 Early 2023"]
[White "Tqebuchava, Zurab"]
[Black "Degenbaev, Aziz"]
[WhiteFideId "13601113"]
[BlackFideId "13802640"]
[WhiteElo "2261"]
[BlackElo "2525"]
[Result "0-1"]
[Round "3"]
[TimeControl "180+1"]
[Date "2023.08.08"]
[WhiteClock "0:00:00"]
[BlackClock "0:00:49"]
[Board "225"]

1. e4 {[%clk 0:03:00]}  g6 {[%clk 0:02:54]} 2. d3 {[%clk 0:03:00]}  Bg7 {[%clk 0:02:54]} 3. Nc3 {[%clk 0:02:58]}  d6 {[%clk 0:02:54]} 4. g3 {[%clk 0:02:55]}  h5 {[%clk 0:02:52]} 5. h4 {[%clk 0:02:52]}  Nc6 {[%clk 0:02:52]} 6. Be3 {[%clk 0:02:50]}  Bg4 {[%clk 0:02:52]} 7. f3 {[%clk 0:02:47]}  Bd7 {[%clk 0:02:52]} 8. Bg2 {[%clk 0:02:47]}  e5 {[%clk 0:02:53]} 9. Nge2 {[%clk 0:02:47]}  Qe7 {[%clk 0:02:53]} 10. Qd2 {[%clk 0:02:46]}  Nf6 {[%clk 0:02:53]} 11. O-O-O {[%clk 0:02:42]}  a6 {[%clk 0:02:52]} 12. Bg5 {[%clk 0:02:37]}  Be6 {[%clk 0:02:51]} 13. f4 {[%clk 0:02:34]}  Qd7 {[%clk 0:02:50]} 14. Rdf1 {[%clk 0:02:22]}  Nh7 {[%clk 0:02:47]} 15. f5 {[%clk 0:01:58]}  Nxg5 {[%clk 0:02:38]} 16. hxg5 {[%clk 0:01:56]}  gxf5 {[%clk 0:02:29]} 17. exf5 {[%clk 0:01:56]}  Bxf5 {[%clk 0:02:27]} 18. Nd5 {[%clk 0:01:51]}  Be6 {[%clk 0:02:23]} 19. Nf6+ {[%clk 0:01:34]}  Bxf6 {[%clk 0:02:22]} 20. Rxf6 {[%clk 0:01:32]}  O-O-O {[%clk 0:02:21]} 21. Qe3 {[%clk 0:01:21]}  Kb8 {[%clk 0:02:16]} 22. Rh6 {[%clk 0:01:09]}  Bg4 {[%clk 0:02:12]} 23. Nc3 {[%clk 0:01:04]}  Nd4 {[%clk 0:02:05]} 24. Kb1 {[%clk 0:00:54]}  Rxh6 {[%clk 0:02:00]} 25. gxh6 {[%clk 0:00:53]}  Qe6 {[%clk 0:02:01]} 26. Ne4 {[%clk 0:00:40]}  Rh8 {[%clk 0:01:57]} 27. Nf2 {[%clk 0:00:30]}  Bf5 {[%clk 0:01:50]} 28. c3 {[%clk 0:00:29]}  Nb5 {[%clk 0:01:46]} 29. a4 {[%clk 0:00:28]}  Na7 {[%clk 0:01:36]} 30. Rxh5 {[%clk 0:00:27]}  Bg6 {[%clk 0:01:36]} 31. Rh4 {[%clk 0:00:26]}  c6 {[%clk 0:01:30]} 32. Ne4 {[%clk 0:00:22]}  Nc8 {[%clk 0:01:25]} 33. a5 {[%clk 0:00:19]}  Qb3 {[%clk 0:01:23]} 34. Qg5 {[%clk 0:00:15]}  Qd1+ {[%clk 0:01:22]} 35. Ka2 {[%clk 0:00:15]}  Qxd3 {[%clk 0:01:21]} 36. Qf6 {[%clk 0:00:12]}  Rh7 {[%clk 0:01:11]} 37. Nf2 {[%clk 0:00:08]}  Qxg3 {[%clk 0:01:10]} 38. Bh3 {[%clk 0:00:07]}  Qg1 {[%clk 0:00:58]} 39. Qd8 {[%clk 0:00:06]}  Qb1+ {[%clk 0:00:58]} 40. Ka3 {[%clk 0:00:05]}  Bc2 {[%clk 0:00:49]} 41. Bxc8 {[%clk 0:00:02]}  Qa1+ {[%clk 0:00:49]} 42. Kb4 {[%clk 0:00:00]}  Qxb2+ {[%clk 0:00:49]} 0-1


[Site "https://www.chess.com"]

[Event "Titled Tuesday Blitz August 08 Early 2023"]
[White "Geivondian, Arman"]
[Black "Miguelitro69"]
[WhiteFideId "24102032"]
[WhiteElo "2517"]
[BlackElo "2258"]
[Result "1-0"]
[Round "3"]
[TimeControl "180+1"]
[Date "2023.08.08"]
[WhiteClock "0:01:38"]
[BlackClock "0:00:26"]
[Board "226"]

1. e4 {[%clk 0:02:58]}  c5 {[%clk 0:03:00]} 2. Nf3 {[%clk 0:02:55]}  Nc6 {[%clk 0:03:00]} 3. Bb5 {[%clk 0:02:55]}  e6 {[%clk 0:03:00]} 4. O-O {[%clk 0:02:55]}  Nge7 {[%clk 0:03:00]} 5. Re1 {[%clk 0:02:56]}  a6 {[%clk 0:03:00]} 6. Bf1 {[%clk 0:02:56]}  d5 {[%clk 0:02:59]} 7. e5 {[%clk 0:02:55]}  d4 {[%clk 0:02:59]} 8. d3 {[%clk 0:02:54]}  Ng6 {[%clk 0:02:59]} 9. Nbd2 {[%clk 0:02:51]}  Qc7 {[%clk 0:02:55]} 10. Qe2 {[%clk 0:02:51]}  Be7 {[%clk 0:02:53]} 11. a4 {[%clk 0:02:50]}  O-O {[%clk 0:02:52]} 12. g3 {[%clk 0:02:48]}  b6 {[%clk 0:02:48]} 13. h4 {[%clk 0:02:47]}  f6 {[%clk 0:02:41]} 14. exf6 {[%clk 0:02:46]}  gxf6 {[%clk 0:02:33]} 15. h5 {[%clk 0:02:44]}  Nge5 {[%clk 0:02:33]} 16. Nxe5 {[%clk 0:02:43]}  Nxe5 {[%clk 0:02:29]} 17. Bg2 {[%clk 0:02:42]}  Ra7 {[%clk 0:02:22]} 18. Ne4 {[%clk 0:02:40]}  Kh8 {[%clk 0:02:15]} 19. Bf4 {[%clk 0:02:39]}  Bb7 {[%clk 0:01:50]} 20. Nxf6 {[%clk 0:02:37]}  Bxf6 {[%clk 0:01:48]} 21. Bxe5 {[%clk 0:02:37]}  Bxe5 {[%clk 0:01:43]} 22. Qxe5+ {[%clk 0:02:38]}  Qxe5 {[%clk 0:01:44]} 23. Rxe5 {[%clk 0:02:39]}  Bxg2 {[%clk 0:01:42]} 24. Kxg2 {[%clk 0:02:40]}  Raf7 {[%clk 0:01:39]} 25. f4 {[%clk 0:02:39]}  Rf5 {[%clk 0:01:34]} 26. Rxe6 {[%clk 0:02:37]}  Rxh5 {[%clk 0:01:34]} 27. Rxb6 {[%clk 0:02:37]}  Re8 {[%clk 0:01:31]} 28. Rf1 {[%clk 0:02:32]}  c4 {[%clk 0:01:27]} 29. dxc4 {[%clk 0:02:31]}  a5 {[%clk 0:01:25]} 30. Rb5 {[%clk 0:02:30]}  Re2+ {[%clk 0:01:21]} 31. Kf3 {[%clk 0:02:27]}  Rhh2 {[%clk 0:01:21]} 32. Rb7 {[%clk 0:02:20]}  h5 {[%clk 0:01:17]} 33. f5 {[%clk 0:02:09]}  Re3+ {[%clk 0:01:10]} 34. Kf4 {[%clk 0:01:58]}  Rxc2 {[%clk 0:01:11]} 35. Kg5 {[%clk 0:01:51]}  Rxg3+ {[%clk 0:01:08]} 36. Kh6 {[%clk 0:01:50]}  Rxc4 {[%clk 0:01:05]} 37. f6 {[%clk 0:01:47]}  Rc6 {[%clk 0:01:03]} 38. Kxh5 {[%clk 0:01:46]}  Rc5+ {[%clk 0:00:55]} 39. Kh6 {[%clk 0:01:42]}  Rh3+ {[%clk 0:00:43]} 40. Kg6 {[%clk 0:01:41]}  Rg3+ {[%clk 0:00:43]} 41. Kf7 {[%clk 0:01:42]}  Rh3 {[%clk 0:00:38]} 42. Rg1 {[%clk 0:01:39]}  Rh7+ {[%clk 0:00:37]} 43. Rg7 {[%clk 0:01:38]}  d3 {[%clk 0:00:27]} 44. Rb8+ {[%clk 0:01:37]}  Rc8 {[%clk 0:00:26]} 45. Rxc8# {[%clk 0:01:38]} 1-0


[Site "https://www.chess.com"]

[Event "Titled Tuesday Blitz August 08 Early 2023"]
[White "Kohler, Aran"]
[Black "Chor, Kevin"]
[WhiteFideId "1002856"]
[BlackFideId "2090740"]
[WhiteElo "2253"]
[BlackElo "2514"]
[Result "1/2-1/2"]
[Round "3"]
[TimeControl "180+1"]
[Date "2023.08.08"]
[WhiteClock "0:00:18"]
[BlackClock "0:00:04"]
[Board "227"]

1. d4 {[%clk 0:03:00]}  Nf6 {[%clk 0:02:59]} 2. Nf3 {[%clk 0:03:00]}  g6 {[%clk 0:02:59]} 3. Bg5 {[%clk 0:02:59]}  Ne4 {[%clk 0:02:56]} 4. h4 {[%clk 0:02:57]}  c5 {[%clk 0:02:54]} 5. Nc3 {[%clk 0:02:52]}  Qa5 {[%clk 0:02:49]} 6. Bd2 {[%clk 0:02:49]}  Nxd2 {[%clk 0:02:46]} 7. Qxd2 {[%clk 0:02:50]}  Bg7 {[%clk 0:02:46]} 8. e3 {[%clk 0:02:45]}  d6 {[%clk 0:02:24]} 9. h5 {[%clk 0:02:40]}  cxd4 {[%clk 0:02:18]} 10. exd4 {[%clk 0:02:38]}  Bg4 {[%clk 0:02:18]} 11. Bb5+ {[%clk 0:02:30]}  Nd7 {[%clk 0:02:09]} 12. hxg6 {[%clk 0:02:16]}  hxg6 {[%clk 0:01:58]} 13. Rxh8+ {[%clk 0:02:16]}  Bxh8 {[%clk 0:01:59]} 14. O-O-O {[%clk 0:02:09]}  O-O-O {[%clk 0:01:49]} 15. Be2 {[%clk 0:02:00]}  Kb8 {[%clk 0:01:43]} 16. Kb1 {[%clk 0:02:00]}  Nb6 {[%clk 0:01:30]} 17. Qg5 {[%clk 0:01:55]}  Qxg5 {[%clk 0:01:04]} 18. Nxg5 {[%clk 0:01:56]}  Bxe2 {[%clk 0:01:04]} 19. Nxe2 {[%clk 0:01:55]}  Rf8 {[%clk 0:00:46]} 20. Rh1 {[%clk 0:01:52]}  Bf6 {[%clk 0:00:43]} 21. Nf3 {[%clk 0:01:32]}  Rh8 {[%clk 0:00:30]} 22. Rxh8+ {[%clk 0:01:29]}  Bxh8 {[%clk 0:00:31]} 23. b3 {[%clk 0:01:25]}  Bf6 {[%clk 0:00:29]} 24. c4 {[%clk 0:01:23]}  d5 {[%clk 0:00:24]} 25. c5 {[%clk 0:01:20]}  Nd7 {[%clk 0:00:24]} 26. Nf4 {[%clk 0:01:14]}  e6 {[%clk 0:00:23]} 27. Kc2 {[%clk 0:01:13]}  Kc7 {[%clk 0:00:23]} 28. Kd3 {[%clk 0:01:13]}  Kc6 {[%clk 0:00:21]} 29. a4 {[%clk 0:01:09]}  b6 {[%clk 0:00:20]} 30. b4 {[%clk 0:01:08]}  a5 {[%clk 0:00:20]} 31. b5+ {[%clk 0:01:07]}  Kc7 {[%clk 0:00:18]} 32. c6 {[%clk 0:01:08]}  Nf8 {[%clk 0:00:15]} 33. Ne5 {[%clk 0:01:08]}  g5 {[%clk 0:00:11]} 34. Nh3 {[%clk 0:00:58]}  Bxe5 {[%clk 0:00:09]} 35. dxe5 {[%clk 0:00:59]}  Ng6 {[%clk 0:00:10]} 36. Kd4 {[%clk 0:00:57]}  g4 {[%clk 0:00:10]} 37. Ng5 {[%clk 0:00:57]}  Nf4 {[%clk 0:00:07]} 38. g3 {[%clk 0:00:51]}  Ne2+ {[%clk 0:00:06]} 39. Ke3 {[%clk 0:00:51]}  Nc3 {[%clk 0:00:06]} 40. Nxf7 {[%clk 0:00:51]}  Nxa4 {[%clk 0:00:06]} 41. Ng5 {[%clk 0:00:52]}  Nc5 {[%clk 0:00:05]} 42. Kd4 {[%clk 0:00:45]}  a4 {[%clk 0:00:05]} 43. f3 {[%clk 0:00:38]}  gxf3 {[%clk 0:00:04]} 44. Nxf3 {[%clk 0:00:38]}  a3 {[%clk 0:00:04]} 45. Kc3 {[%clk 0:00:39]}  Ne4+ {[%clk 0:00:04]} 46. Kb3 {[%clk 0:00:38]}  Nxg3 {[%clk 0:00:05]} 47. Kxa3 {[%clk 0:00:38]}  Ne2 {[%clk 0:00:05]} 48. Kb4 {[%clk 0:00:36]}  Nf4 {[%clk 0:00:05]} 49. Kc3 {[%clk 0:00:34]}  Ng6 {[%clk 0:00:05]} 50. Kd4 {[%clk 0:00:32]}  Kd8 {[%clk 0:00:04]} 51. Ng5 {[%clk 0:00:30]}  Nf8 {[%clk 0:00:05]} 52. Nf7+ {[%clk 0:00:29]}  Kc7 {[%clk 0:00:05]} 53. Nd6 {[%clk 0:00:30]}  Ng6 {[%clk 0:00:05]} 54. Ne8+ {[%clk 0:00:29]}  Kd8 {[%clk 0:00:05]} 55. Nf6 {[%clk 0:00:23]}  Kc7 {[%clk 0:00:06]} 56. Ne8+ {[%clk 0:00:22]}  Kd8 {[%clk 0:00:06]} 57. Nf6 {[%clk 0:00:22]}  Kc7 {[%clk 0:00:05]} 58. Ng4 {[%clk 0:00:21]}  Nh4 {[%clk 0:00:04]} 59. Ne3 {[%clk 0:00:22]}  Nf3+ {[%clk 0:00:04]} 60. Kd3 {[%clk 0:00:22]}  Nxe5+ {[%clk 0:00:05]} 61. Kd4 {[%clk 0:00:22]}  Nf7 {[%clk 0:00:05]} 62. Ng4 {[%clk 0:00:21]}  Nd6 {[%clk 0:00:05]} 63. Ke5 {[%clk 0:00:20]}  Nxb5 {[%clk 0:00:04]} 64. Kxe6 {[%clk 0:00:20]}  Kxc6 {[%clk 0:00:04]} 65. Ne5+ {[%clk 0:00:19]}  Kc5 {[%clk 0:00:04]} 66. Nd7+ {[%clk 0:00:19]}  Kc6 {[%clk 0:00:03]} 67. Ne5+ {[%clk 0:00:19]}  Kc5 {[%clk 0:00:03]} 68. Nd7+ {[%clk 0:00:19]}  Kc4 {[%clk 0:00:02]} 69. Nxb6+ {[%clk 0:00:18]}  Kc5 {[%clk 0:00:03]} 70. Nd7+ {[%clk 0:00:18]}  Kc4 {[%clk 0:00:03]} 71. Ne5+ {[%clk 0:00:18]}  Kc3 {[%clk 0:00:03]} 72. Nf3 {[%clk 0:00:18]}  d4 {[%clk 0:00:04]} 73. Nxd4 {[%clk 0:00:18]} 1/2-1/2


[Site "https://www.chess.com"]

[Event "Titled Tuesday Blitz August 08 Early 2023"]
[White "Eynullayev, Atilla"]
[Black "Schut, Han"]
[WhiteFideId "13413570"]
[BlackFideId "1005561"]
[WhiteElo "2513"]
[BlackElo "2249"]
[Result "1-0"]
[Round "3"]
[TimeControl "180+1"]
[Date "2023.08.08"]
[WhiteClock "0:01:34"]
[BlackClock "0:00:18"]
[Board "228"]

1. d4 {[%clk 0:03:00]}  Nf6 {[%clk 0:02:57]} 2. c4 {[%clk 0:03:01]}  g6 {[%clk 0:02:58]} 3. Nc3 {[%clk 0:03:01]}  d5 {[%clk 0:02:58]} 4. cxd5 {[%clk 0:03:02]}  Nxd5 {[%clk 0:02:58]} 5. e4 {[%clk 0:03:03]}  Nxc3 {[%clk 0:02:59]} 6. bxc3 {[%clk 0:03:03]}  Bg7 {[%clk 0:02:59]} 7. Nf3 {[%clk 0:03:04]}  c5 {[%clk 0:03:00]} 8. Bb5+ {[%clk 0:03:05]}  Nc6 {[%clk 0:03:00]} 9. Rb1 {[%clk 0:03:05]}  O-O {[%clk 0:02:55]} 10. d5 {[%clk 0:03:06]}  Ne5 {[%clk 0:02:48]} 11. O-O {[%clk 0:03:05]}  Bg4 {[%clk 0:02:41]} 12. Be2 {[%clk 0:03:04]}  Bxf3 {[%clk 0:02:27]} 13. Bxf3 {[%clk 0:03:03]}  c4 {[%clk 0:02:27]} 14. Be2 {[%clk 0:03:03]}  Qc7 {[%clk 0:02:18]} 15. Be3 {[%clk 0:02:59]}  Rfb8 {[%clk 0:02:07]} 16. Qa4 {[%clk 0:02:48]}  Rc8 {[%clk 0:01:56]} 17. Rfd1 {[%clk 0:02:40]}  Nd7 {[%clk 0:01:45]} 18. Bd4 {[%clk 0:02:28]}  Bxd4 {[%clk 0:01:40]} 19. Rxd4 {[%clk 0:02:28]}  Nb6 {[%clk 0:01:38]} 20. Qb4 {[%clk 0:02:23]}  Qc5 {[%clk 0:01:16]} 21. a4 {[%clk 0:02:22]}  Qxb4 {[%clk 0:01:00]} 22. Rxb4 {[%clk 0:02:16]}  Rc5 {[%clk 0:00:53]} 23. Bxc4 {[%clk 0:01:49]}  Rac8 {[%clk 0:00:53]} 24. Bf1 {[%clk 0:01:49]}  Rxc3 {[%clk 0:00:51]} 25. a5 {[%clk 0:01:49]}  Nd7 {[%clk 0:00:33]} 26. Rxb7 {[%clk 0:01:48]}  Ne5 {[%clk 0:00:33]} 27. Rxe7 {[%clk 0:01:43]}  Nc4 {[%clk 0:00:26]} 28. Rxc4 {[%clk 0:01:34]}  R8xc4 {[%clk 0:00:18]} 29. Bxc4 {[%clk 0:01:34]} 1-0


[Site "https://www.chess.com"]

[Event "Titled Tuesday Blitz August 08 Early 2023"]
[White "Lehtosaari, Mauri"]
[Black "Kula, Robert"]
[WhiteFideId "501999"]
[BlackFideId "1101218"]
[WhiteElo "2507"]
[BlackElo "2240"]
[Result "1-0"]
[Round "3"]
[TimeControl "180+1"]
[Date "2023.08.08"]
[WhiteClock "0:00:40"]
[BlackClock "0:00:31"]
[Board "229"]

1. d4 {[%clk 0:02:59]}  d5 {[%clk 0:02:57]} 2. Nf3 {[%clk 0:03:00]}  Nf6 {[%clk 0:02:56]} 3. Bg5 {[%clk 0:03:00]}  c6 {[%clk 0:02:54]} 4. Nbd2 {[%clk 0:03:00]}  Ne4 {[%clk 0:02:52]} 5. Bf4 {[%clk 0:03:00]}  Bf5 {[%clk 0:02:50]} 6. e3 {[%clk 0:03:00]}  e6 {[%clk 0:02:50]} 7. c4 {[%clk 0:03:00]}  Nd7 {[%clk 0:02:49]} 8. Qb3 {[%clk 0:03:00]}  Qb6 {[%clk 0:02:48]} 9. c5 {[%clk 0:03:00]}  Qxb3 {[%clk 0:02:48]} 10. axb3 {[%clk 0:03:01]}  a6 {[%clk 0:02:45]} 11. b4 {[%clk 0:03:01]}  Rc8 {[%clk 0:02:44]} 12. Nb3 {[%clk 0:03:01]}  f6 {[%clk 0:02:09]} 13. Na5 {[%clk 0:02:54]}  g5 {[%clk 0:02:09]} 14. Bg3 {[%clk 0:02:49]}  b5 {[%clk 0:02:08]} 15. Nd2 {[%clk 0:02:38]}  Nxg3 {[%clk 0:02:00]} 16. hxg3 {[%clk 0:02:37]}  e5 {[%clk 0:01:59]} 17. Nab3 {[%clk 0:01:53]}  Nb8 {[%clk 0:01:55]} 18. dxe5 {[%clk 0:01:50]}  fxe5 {[%clk 0:01:55]} 19. Nf3 {[%clk 0:01:51]}  Bc2 {[%clk 0:01:40]} 20. Na5 {[%clk 0:01:44]}  e4 {[%clk 0:01:34]} 21. Nxg5 {[%clk 0:01:38]}  Bg7 {[%clk 0:01:32]} 22. Rc1 {[%clk 0:01:35]}  Bd3 {[%clk 0:01:19]} 23. Bxd3 {[%clk 0:01:34]}  exd3 {[%clk 0:01:19]} 24. Kd2 {[%clk 0:01:35]}  Bxb2 {[%clk 0:01:18]} 25. Rb1 {[%clk 0:01:35]}  Bf6 {[%clk 0:01:16]} 26. Nf3 {[%clk 0:01:32]}  Kf7 {[%clk 0:01:13]} 27. Kxd3 {[%clk 0:01:31]}  Rce8 {[%clk 0:01:12]} 28. Nb7 {[%clk 0:01:30]}  Be7 {[%clk 0:01:02]} 29. Nd4 {[%clk 0:01:28]}  Bf8 {[%clk 0:00:59]} 30. Nf5 {[%clk 0:01:22]}  Kg6 {[%clk 0:00:50]} 31. Nbd6 {[%clk 0:01:19]}  Bxd6 {[%clk 0:00:50]} 32. Nxd6 {[%clk 0:01:19]}  Re6 {[%clk 0:00:49]} 33. f4 {[%clk 0:01:16]}  Kg7 {[%clk 0:00:45]} 34. g4 {[%clk 0:01:16]}  a5 {[%clk 0:00:41]} 35. bxa5 {[%clk 0:01:06]}  Na6 {[%clk 0:00:41]} 36. Kd4 {[%clk 0:01:06]}  Rd8 {[%clk 0:00:40]} 37. Rh5 {[%clk 0:00:47]}  Rdxd6 {[%clk 0:00:36]} 38. cxd6 {[%clk 0:00:46]}  Re4+ {[%clk 0:00:36]} 39. Kd3 {[%clk 0:00:46]}  Nc5+ {[%clk 0:00:36]} 40. Ke2 {[%clk 0:00:45]}  d4 {[%clk 0:00:35]} 41. Rxc5 {[%clk 0:00:45]}  Rxe3+ {[%clk 0:00:35]} 42. Kf2 {[%clk 0:00:44]}  Kf6 {[%clk 0:00:34]} 43. Rxc6 {[%clk 0:00:43]}  Ke6 {[%clk 0:00:35]} 44. Rxb5 {[%clk 0:00:41]}  Ra3 {[%clk 0:00:34]} 45. Rc4 {[%clk 0:00:39]}  Kxd6 {[%clk 0:00:33]} 46. Rxd4+ {[%clk 0:00:39]}  Kc6 {[%clk 0:00:33]} 47. Re5 {[%clk 0:00:39]}  h6 {[%clk 0:00:32]} 48. g5 {[%clk 0:00:39]}  hxg5 {[%clk 0:00:32]} 49. Rxg5 {[%clk 0:00:40]}  Ra2+ {[%clk 0:00:32]} 50. Kf3 {[%clk 0:00:40]}  Ra1 {[%clk 0:00:32]} 51. Re4 {[%clk 0:00:40]}  Rf1+ {[%clk 0:00:32]} 52. Kg4 {[%clk 0:00:40]}  Rg1 {[%clk 0:00:32]} 53. Re6+ {[%clk 0:00:40]}  Kd7 {[%clk 0:00:32]} 54. Rh6 {[%clk 0:00:41]}  Rh1 {[%clk 0:00:30]} 55. Rxh1 {[%clk 0:00:40]}  Ke7 {[%clk 0:00:31]} 56. Rh6 {[%clk 0:00:40]}  Kf7 {[%clk 0:00:31]} 57. Rb6 {[%clk 0:00:40]}  Kf8 {[%clk 0:00:30]} 58. Rb7 {[%clk 0:00:40]}  Ke8 {[%clk 0:00:31]} 59. Rg8# {[%clk 0:00:40]} 1-0


[Site "https://www.chess.com"]

[Event "Titled Tuesday Blitz August 08 Early 2023"]
[White "Shishkov, Andrei"]
[Black "Joshi, Pankaj"]
[WhiteFideId "4500563"]
[BlackFideId "5006210"]
[WhiteElo "2489"]
[BlackElo "2231"]
[Result "1-0"]
[Round "3"]
[TimeControl "180+1"]
[Date "2023.08.08"]
[WhiteClock "0:01:29"]
[BlackClock "0:01:45"]
[Board "232"]

1. d4 {[%clk 0:03:00]}  f5 {[%clk 0:02:58]} 2. g3 {[%clk 0:02:59]}  Nf6 {[%clk 0:02:59]} 3. Bg2 {[%clk 0:02:59]}  e6 {[%clk 0:02:59]} 4. Nh3 {[%clk 0:02:59]}  d5 {[%clk 0:02:59]} 5. O-O {[%clk 0:02:57]}  Bd6 {[%clk 0:02:58]} 6. c4 {[%clk 0:02:54]}  c6 {[%clk 0:02:57]} 7. Bf4 {[%clk 0:02:54]}  O-O {[%clk 0:02:54]} 8. Nd2 {[%clk 0:02:53]}  Ne4 {[%clk 0:02:49]} 9. Nf3 {[%clk 0:02:52]}  h6 {[%clk 0:02:45]} 10. Bxd6 {[%clk 0:02:46]}  Qxd6 {[%clk 0:02:46]} 11. Nf4 {[%clk 0:02:44]}  Nd7 {[%clk 0:02:19]} 12. c5 {[%clk 0:02:29]}  Qe7 {[%clk 0:02:15]} 13. Ng6 {[%clk 0:02:30]}  Qf7 {[%clk 0:02:15]} 14. Nxf8 {[%clk 0:02:30]}  Qxf8 {[%clk 0:02:16]} 15. Nd2 {[%clk 0:02:22]}  g5 {[%clk 0:02:14]} 16. Nxe4 {[%clk 0:02:15]}  fxe4 {[%clk 0:02:12]} 17. f3 {[%clk 0:02:15]}  exf3 {[%clk 0:02:08]} 18. Rxf3 {[%clk 0:02:10]}  Nf6 {[%clk 0:02:06]} 19. Qd3 {[%clk 0:02:06]}  Qg7 {[%clk 0:02:05]} 20. Raf1 {[%clk 0:02:02]}  Ne4 {[%clk 0:02:03]} 21. Rf8+ {[%clk 0:01:47]}  Qxf8 {[%clk 0:01:59]} 22. Rxf8+ {[%clk 0:01:48]}  Kxf8 {[%clk 0:02:00]} 23. Bxe4 {[%clk 0:01:49]}  dxe4 {[%clk 0:01:59]} 24. Qxe4 {[%clk 0:01:50]}  Bd7 {[%clk 0:01:59]} 25. Qh7 {[%clk 0:01:45]}  Ke8 {[%clk 0:01:53]} 26. Qg8+ {[%clk 0:01:42]}  Ke7 {[%clk 0:01:52]} 27. Qxa8 {[%clk 0:01:42]}  g4 {[%clk 0:01:52]} 28. Qxb7 {[%clk 0:01:41]}  h5 {[%clk 0:01:53]} 29. Qxa7 {[%clk 0:01:41]}  h4 {[%clk 0:01:54]} 30. Qc7 {[%clk 0:01:40]}  h3 {[%clk 0:01:54]} 31. Kf2 {[%clk 0:01:38]}  e5 {[%clk 0:01:51]} 32. Qxe5+ {[%clk 0:01:37]}  Kd8 {[%clk 0:01:52]} 33. Ke3 {[%clk 0:01:33]}  Kc8 {[%clk 0:01:52]} 34. Kf4 {[%clk 0:01:32]}  Kb7 {[%clk 0:01:50]} 35. Qe7 {[%clk 0:01:31]}  Kb8 {[%clk 0:01:48]} 36. Qxd7 {[%clk 0:01:29]}  Ka8 {[%clk 0:01:49]} 37. Ke5 {[%clk 0:01:29]}  Kb8 {[%clk 0:01:43]} 38. Kd6 {[%clk 0:01:29]}  Ka8 {[%clk 0:01:44]} 39. Kxc6 {[%clk 0:01:29]}  Kb8 {[%clk 0:01:45]} 40. Qb7# {[%clk 0:01:29]} 1-0


[Site "https://www.chess.com"]

[Event "Titled Tuesday Blitz August 08 Early 2023"]
[White "marik_spb"]
[Black "campochess"]
[WhiteElo "2483"]
[BlackElo "2217"]
[Result "1-0"]
[Round "3"]
[TimeControl "180+1"]
[Date "2023.08.08"]
[WhiteClock "0:00:18"]
[BlackClock "0:00:29"]
[Board "233"]

1. e4 {[%clk 0:02:59]}  Nc6 {[%clk 0:02:57]} 2. d4 {[%clk 0:02:59]}  e5 {[%clk 0:02:56]} 3. d5 {[%clk 0:02:59]}  Nce7 {[%clk 0:02:56]} 4. c4 {[%clk 0:03:00]}  Ng6 {[%clk 0:02:56]} 5. Nc3 {[%clk 0:02:58]}  Bb4 {[%clk 0:02:54]} 6. Ne2 {[%clk 0:02:53]}  Nf6 {[%clk 0:02:53]} 7. a3 {[%clk 0:02:51]}  Be7 {[%clk 0:02:50]} 8. f3 {[%clk 0:02:45]}  d6 {[%clk 0:02:50]} 9. Be3 {[%clk 0:02:32]}  a6 {[%clk 0:02:48]} 10. b4 {[%clk 0:02:32]}  Bd7 {[%clk 0:02:47]} 11. Ng3 {[%clk 0:02:20]}  Nh4 {[%clk 0:02:41]} 12. Qd2 {[%clk 0:02:16]}  O-O {[%clk 0:02:34]} 13. Bd3 {[%clk 0:02:15]}  Ne8 {[%clk 0:02:30]} 14. O-O {[%clk 0:02:13]}  f5 {[%clk 0:02:24]} 15. exf5 {[%clk 0:02:13]}  Nxf5 {[%clk 0:02:22]} 16. Bxf5 {[%clk 0:02:08]}  Bxf5 {[%clk 0:02:22]} 17. c5 {[%clk 0:02:08]}  Bg6 {[%clk 0:02:18]} 18. Nge4 {[%clk 0:02:00]}  Nf6 {[%clk 0:02:15]} 19. a4 {[%clk 0:01:28]}  Nh5 {[%clk 0:02:11]} 20. a5 {[%clk 0:01:26]}  Nf4 {[%clk 0:02:09]} 21. c6 {[%clk 0:01:26]}  bxc6 {[%clk 0:02:05]} 22. dxc6 {[%clk 0:01:26]}  Rb8 {[%clk 0:02:03]} 23. Nd5 {[%clk 0:01:23]}  Ne6 {[%clk 0:01:59]} 24. Rfb1 {[%clk 0:01:14]}  Qe8 {[%clk 0:01:53]} 25. b5 {[%clk 0:01:04]}  axb5 {[%clk 0:01:52]} 26. a6 {[%clk 0:01:04]}  Bxe4 {[%clk 0:01:49]} 27. fxe4 {[%clk 0:01:04]}  Bd8 {[%clk 0:01:31]} 28. a7 {[%clk 0:01:03]}  Ra8 {[%clk 0:01:30]} 29. Rxb5 {[%clk 0:00:59]}  Qxc6 {[%clk 0:01:29]} 30. Rb8 {[%clk 0:00:55]}  Bh4 {[%clk 0:01:24]} 31. Rxf8+ {[%clk 0:00:49]}  Rxf8 {[%clk 0:01:10]} 32. Qa2 {[%clk 0:00:39]}  Ra8 {[%clk 0:00:50]} 33. Ne7+ {[%clk 0:00:28]}  Bxe7 {[%clk 0:00:48]} 34. Qxe6+ {[%clk 0:00:29]}  Kf8 {[%clk 0:00:47]} 35. Rf1+ {[%clk 0:00:29]}  Ke8 {[%clk 0:00:46]} 36. Bg5 {[%clk 0:00:25]}  Qc5+ {[%clk 0:00:38]} 37. Kh1 {[%clk 0:00:24]}  d5 {[%clk 0:00:38]} 38. Bxe7 {[%clk 0:00:17]}  Qxe7 {[%clk 0:00:37]} 39. Qg8+ {[%clk 0:00:18]}  Kd7 {[%clk 0:00:29]} 40. Qxd5+ {[%clk 0:00:18]} 1-0


[Site "https://www.chess.com"]

[Event "Titled Tuesday Blitz August 08 Early 2023"]
[White "Rottenwohrer Suarez, Juan"]
[Black "Thiel, Thomas"]
[WhiteFideId "32068182"]
[BlackFideId "4615964"]
[WhiteElo "2480"]
[BlackElo "2213"]
[Result "1-0"]
[Round "3"]
[TimeControl "180+1"]
[Date "2023.08.08"]
[WhiteClock "0:01:12"]
[BlackClock "0:02:24"]
[Board "235"]

1. e4 {[%clk 0:03:00]}  d5 {[%clk 0:02:59]} 2. exd5 {[%clk 0:03:00]}  Nf6 {[%clk 0:02:59]} 3. Nf3 {[%clk 0:02:58]}  Nxd5 {[%clk 0:02:58]} 4. d4 {[%clk 0:02:59]}  g6 {[%clk 0:02:58]} 5. c4 {[%clk 0:02:59]}  Nb6 {[%clk 0:02:57]} 6. Nc3 {[%clk 0:02:57]}  Bg7 {[%clk 0:02:57]} 7. Be2 {[%clk 0:02:38]}  O-O {[%clk 0:02:54]} 8. O-O {[%clk 0:02:39]}  Bg4 {[%clk 0:02:51]} 9. Be3 {[%clk 0:02:37]}  Nc6 {[%clk 0:02:51]} 10. d5 {[%clk 0:01:51]}  Bxf3 {[%clk 0:02:48]} 11. gxf3 {[%clk 0:01:31]}  Na5 {[%clk 0:02:45]} 12. Bd4 {[%clk 0:01:25]}  e5 {[%clk 0:02:40]} 13. Bxb6 {[%clk 0:01:15]}  axb6 {[%clk 0:02:36]} 14. b4 {[%clk 0:01:15]}  e4 {[%clk 0:02:24]} 15. Rc1 {[%clk 0:01:12]} 1-0


[Site "https://www.chess.com"]